bitfinex-derivatives/quotes_ETHF0:USTF0_20260115
["timestamp","ask_amount","ask_price","bid_price","bid_amount"]
[1768489664865,0.00448585,3340.2,3338.7,0.00346601]
[1768489665278,0.00448585,3340.2,3339.0,0.13888032]
[1768489665587,0.00448585,3340.2,3338.7,4.16146601]
[1768489665879,0.00448585,3340.2,3338.7,0.00346601]
[1768489667977,0.13478389,3340.2,3338.7,0.00346601]
[1768489668285,6.14974,3340.1,3337.7,0.13888032]
[1768489668487,0.00448585,3340.2,3337.6,0.24270127]
[1768489668488,0.13478389,3340.2,3337.8,0.13888032]
[1768489668680,0.14975,3339.8,3337.8,0.13888032]
[1768489668886,0.00448585,3340.2,3338.3,0.13888032]
[1768489669286,0.28451389,3340.2,3338.3,0.00288267]
[1768489669483,0.14974,3340.1,3338.3,0.00288267]
[1768489670282,0.00448585,3340.2,3338.3,0.00288267]
[1768489670481,0.00448585,3340.2,3338.3,0.14176299]
[1768489671290,0.14466984,3340.2,3338.3,0.00288267]
[1768489671592,0.00448585,3340.2,3338.3,0.13689938]
[1768489672188,0.00448585,3340.2,3338.5,0.13401671]
[1768489672487,0.00259144,3341.0,3339.1,0.13401671]
[1768489673689,0.00449263,3340.4,3339.1,0.13401671]
[1768489674192,0.00449263,3340.4,3339.4,0.00449263]
[1768489677077,0.00449263,3340.4,3338.5,0.14981]
[1768489677078,0.14974,3340.1,3337.9,0.13401671]
[1768489677273,0.00449263,3340.4,3338.3,0.13689938]
[1768489677483,0.00449263,3340.4,3338.3,0.28670938]
[1768489677696,0.00449263,3340.4,3338.4,0.13401671]
[1768489677881,0.00449263,3340.4,3338.7,0.13401671]
[1768489678081,0.00449263,3340.4,3338.8,0.13401671]
[1768489678289,0.00449263,3340.4,3338.7,0.1498]
[1768489678290,0.00259144,3341.0,3339.2,0.13401671]
[1768489678492,0.00259144,3341.0,3339.4,0.13401671]
[1768489678689,0.397,3342.5,3339.4,0.13401671]
[1768489678690,0.14018399,3342.2,3340.0,0.13401671]
[1768489678888,0.14018399,3342.2,3340.1,0.13401671]
[1768489679195,0.14964,3342.3,3340.2,0.13401671]
[1768489679585,0.00449263,3341.6,3340.2,0.13401671]
[1768489679783,0.14967,3341.5,3339.6,0.13401671]
[1768489680595,0.14968,3341.4,3339.6,0.13401671]
[1768489681286,0.00449263,3341.6,3340.2,0.00449263]
[1768489682195,0.14467662,3341.6,3340.2,0.00449263]
[1768489682391,0.14467662,3341.6,3339.2,2.995]
[1768489682392,0.1497,3340.9,3339.2,2.995]
[1768489682688,0.15416263,3341.6,3339.3,0.13401671]
[1768489682898,0.14467662,3341.6,3339.3,0.13401671]
[1768489683292,0.14968,3341.4,3339.3,0.13401671]
[1768489684091,0.14968,3341.4,3339.3,3.12901671]
[1768489684291,0.14968,3341.4,3339.4,0.13401671]
[1768489684792,0.14969,3341.2,3339.0,2.995]
[1768489684994,0.14969,3341.1,3339.0,2.995]
[1768489685185,0.00449263,3341.6,3339.1,0.13401671]
[1768489685386,0.00449263,3341.6,3339.7,0.13401671]
[1768489686092,0.14467662,3341.6,3339.1,0.13401671]
[1768489686299,0.1497,3341.0,3339.1,0.13401671]
[1768489686595,0.14972,3340.6,3338.5,0.13401671]
[1768489687198,0.00449263,3339.9,3338.5,0.13401671]
[1768489687501,0.00707728,3339.9,3338.5,0.13401671]
[1768489687703,0.00707728,3339.9,3338.5,0.28381671]
[1768489687999,0.00707728,3339.9,3338.6,0.28381671]
[1768489688198,0.00707728,3339.9,3338.7,0.13401671]
[1768489688396,0.00707728,3339.9,3338.3,0.00288267]
[1768489688903,0.00707728,3339.9,3338.3,0.13689938]
[1768489689900,0.14726127,3339.9,3338.3,0.00288267]
[1768489690304,3.13518399,3339.8,3338.3,0.00288267]
[1768489690603,0.14978,3339.1,3337.1,0.13401671]
[1768489690997,0.14979,3339.0,3337.1,0.13401671]
[1768489691198,0.14979,3339.0,3336.6,2.995]
[1768489691199,0.1498,3338.6,3336.6,2.995]
[1768489691396,0.14018399,3338.5,3336.6,0.00367017]
[1768489691597,0.84896983,3338.4,3336.2,0.13401671]
[1768489691804,0.00449263,3337.9,3336.2,0.28392671]
[1768489691992,0.00449263,3337.9,3336.3,0.13401671]
[1768489692200,0.395,3339.6,3336.0,0.05215714]
[1768489692201,0.14976,3339.5,3336.9,0.13401671]
[1768489692401,0.14976,3339.5,3337.0,0.13401671]
[1768489692600,0.14276864,3339.9,3337.3,0.13401671]
[1768489692907,0.14018399,3339.7,3337.3,0.13401671]
[1768489693107,0.98959284,3339.6,3337.3,0.13401671]
[1768489693403,0.00449263,3338.8,3337.0,0.00241385]
[1768489694106,0.00449263,3338.8,3337.0,0.13643056]
[1768489694311,0.00449263,3338.8,3337.1,0.13401671]
[1768489695600,0.00449263,3338.8,3337.5,0.13401671]
[1768489696809,0.00449263,3338.8,3337.0,0.13643056]
[1768489697198,0.00449263,3338.8,3337.0,6.13643056]
[1768489697404,0.00449263,3338.8,3337.1,0.28388671]
[1768489697619,0.00449263,3338.8,3337.2,0.13401671]
[1768489698512,0.00449263,3338.8,3337.2,0.28387671]
[1768489698705,0.00449263,3338.8,3337.3,0.13401671]
[1768489699413,0.00449263,3338.8,3337.0,0.00241385]
[1768489699709,0.15429263,3338.8,3337.0,0.13643056]
[1768489699914,0.00449263,3338.8,3337.0,0.13643056]
[1768489700612,0.00449263,3338.8,3337.5,0.13703126]
[1768489703723,0.00449263,3338.8,3337.5,0.28688126]
[1768489703908,0.00449263,3338.8,3337.6,0.13703126]
[1768489704109,0.00258465,3339.9,3337.6,0.13703126]
[1768489704616,0.00258465,3339.9,3338.1,0.1388393]
[1768489704807,0.00258465,3339.9,3338.2,0.1388393]
[1768489705014,0.00258465,3339.9,3338.4,0.1388393]
[1768489705314,0.00258465,3339.9,3338.7,0.14333193]
[1768489705917,0.1497,3340.9,3338.7,0.14333193]
[1768489706110,0.28826058,3340.9,3338.7,0.14333193]
[1768489706311,0.00449263,3340.1,3338.7,0.14333193]
[1768489706711,0.0071542,3340.1,3338.7,0.14333193]
[1768489706922,0.13856058,3341.5,3338.8,0.1388393]
[1768489707113,0.13856058,3341.4,3338.8,0.1388393]
[1768489707511,0.13856058,3341.4,3338.9,0.1388393]
[1768489708016,0.00449263,3340.5,3338.9,0.1388393]
[1768489708921,0.00449263,3340.5,3338.9,0.2886293]
[1768489709118,0.00254608,3341.4,3339.4,0.1388393]
[1768489709321,0.00254608,3341.4,3339.6,0.1388393]
[1768489710217,0.00254608,3341.4,3339.7,0.2885893]
[1768489710411,0.00254608,3341.4,3339.8,0.1388393]
[1768489710813,0.13856058,3342.6,3339.8,0.1388393]
[1768489711013,0.13856058,3342.6,3340.4,0.1388393]
[1768489711214,0.13856058,3342.6,3340.5,0.1388393]
[1768489711409,0.14961,3343.0,3341.2,0.00449263]
[1768489711823,0.13856058,3342.9,3341.2,0.00449263]
[1768489712116,0.13856058,3342.8,3341.2,0.00449263]
[1768489712514,0.14961,3342.9,3341.2,0.00449263]
[1768489712711,0.00220661,3343.0,3341.2,0.14333193]
[1768489713628,0.00220661,3343.0,3341.2,0.00449263]
[1768489714128,0.00449263,3342.4,3341.2,0.00449263]
[1768489715818,0.00220661,3343.0,3341.2,0.14333193]
[1768489717417,0.00220661,3343.0,3341.3,4.161]
[1768489717617,0.00220661,3343.0,3341.4,0.1388393]
[1768489717818,0.00220661,3343.0,3341.5,0.1388393]
[1768489720630,0.13856058,3344.0,3341.9,0.1388393]
[1768489721428,0.13856058,3344.6,3342.2,0.1388393]
[1768489721727,0.14224805,3344.6,3342.2,0.14135954]
[1768489721922,0.14224805,3344.6,3343.1,0.00448585]
[1768489723726,0.13856058,3344.5,3343.1,0.00448585]
[1768489724027,6.15322747,3344.6,3342.2,0.00252024]
[1768489724028,0.13856058,3344.0,3342.2,0.00252024]
[1768489725133,0.13856058,3344.0,3342.8,0.00448585]
[1768489725935,0.13856058,3343.9,3342.2,0.00252024]
[1768489727034,0.13856058,3343.9,3342.7,0.00448585]
[1768489727628,0.14956,3344.0,3342.7,0.00448585]
[1768489728335,0.28812058,3344.0,3342.7,0.00448585]
[1768489728538,0.13856058,3343.9,3342.7,0.00448585]
[1768489729934,0.00295664,3344.1,3342.7,0.00448585]
[1768489732230,0.2959178,3344.1,3342.7,0.00448585]
[1768489732942,0.14340116,3344.0,3342.7,0.00448585]
[1768489734226,0.00295664,3344.1,3342.7,0.00448585]
[1768489734741,0.00295664,3344.1,3342.7,0.13934621]
[1768489735738,0.00295664,3344.1,3342.7,0.28896621]
[1768489735938,0.00295664,3344.1,3342.7,0.13934621]
[1768489736139,0.00295664,3344.1,3342.7,0.00448585]
[1768489737839,0.00295664,3344.1,3342.7,0.13934621]
[1768489738236,0.00368747,3344.6,3343.4,1.82564368]
[1768489738431,0.00368747,3344.6,3342.7,2.99748585]
[1768489738742,0.29662863,3344.6,3342.7,0.00448585]
[1768489738935,0.14340116,3344.5,3342.7,0.00448585]
[1768489739138,0.14340116,3344.4,3342.7,0.00448585]
[1768489741357,0.00368747,3344.6,3342.7,0.00448585]
[1768489741645,0.85378118,3344.5,3342.7,0.13934621]
[1768489741839,0.85378118,3344.5,3342.7,0.00448585]
[1768489741840,0.29294116,3344.5,3342.7,0.00448585]
[1768489742040,0.99724416,3344.4,3342.7,0.00448585]
[1768489742241,0.14340116,3344.4,3342.7,0.00448585]
[1768489742747,0.00368747,3344.6,3342.7,0.00448585]
[1768489743042,0.85396056,3344.5,3342.7,0.13934621]
[1768489743348,0.00368747,3344.6,3342.7,0.13934621]
[1768489744047,0.14708863,3344.6,3342.7,0.13934621]
[1768489744434,0.14708863,3344.6,3342.7,0.00448585]
[1768489744634,0.14340116,3344.4,3342.7,0.00448585]
[1768489744947,0.14340116,3344.2,3342.7,0.00448585]
[1768489745143,0.14340116,3344.0,3342.7,0.00448585]
[1768489745945,0.00448585,3343.7,3342.7,0.00448585]
[1768489752848,0.00448585,3343.7,3342.2,0.00252024]
[1768489752849,0.99814845,3343.6,3342.2,0.00252024]
[1768489753055,0.14340116,3343.6,3342.2,0.00252024]
[1768489753358,0.00448585,3343.7,3342.2,0.00252024]
[1768489753856,0.00448585,3343.7,3342.2,0.1373806]
[1768489754060,0.00448585,3343.7,3342.6,0.00448585]
[1768489754759,0.00448585,3343.7,3342.6,0.13934621]
[1768489754944,0.14340116,3344.8,3342.8,0.13486036]
[1768489755148,0.14340116,3345.3,3342.9,0.13486036]
[1768489755445,0.14340116,3345.3,3343.3,0.28445036]
[1768489755643,0.14340116,3345.9,3343.9,0.13486036]
[1768489755846,0.85523417,3345.8,3344.0,0.13486036]
[1768489756059,0.14340116,3345.9,3344.0,0.13486036]
[1768489756255,0.00448585,3345.2,3344.6,0.00448585]
[1768489756454,0.14340116,3347.1,3345.3,1.82564368]
[1768489756647,0.00362728,3347.1,3345.4,0.13486036]
[1768489758448,0.14702844,3347.1,3345.3,0.00279885]
[1768489758649,0.00362728,3347.1,3345.3,0.13765921]
[1768489761459,0.00448585,3346.5,3345.3,0.00279885]
[1768489764053,0.00448585,3346.5,3345.3,0.13461217]
[1768489764365,0.00362728,3347.1,3345.6,0.13181332]
[1768489764564,0.14068175,3348.3,3346.1,0.13181332]
[1768489764771,0.14068175,3348.3,3346.2,1.29581332]
[1768489765068,0.14068175,3348.3,3346.3,0.13181332]
[1768489765466,0.14068175,3348.3,3347.0,0.00448585]
[1768489765768,0.14411765,3348.3,3347.0,0.00448585]
[1768489766354,0.0034359,3348.3,3347.0,1.83012953]
[1768489766769,0.0034359,3348.3,3347.0,0.00448585]
[1768489769558,0.0034359,3348.3,3347.0,0.13629917]
[1768489770670,0.0034359,3348.3,3347.0,1.16848585]
[1768489770971,0.0034359,3348.3,3347.0,0.00448585]
[1768489772875,0.14411765,3348.3,3347.0,0.00448585]
[1768489773170,0.14411765,3348.3,3345.6,1.97513368]
[1768489773171,0.14068175,3348.0,3345.6,3.13949]
[1768489773370,0.14068175,3348.0,3345.6,0.14949]
[1768489773569,0.14068175,3347.7,3345.2,0.13181332]
[1768489773762,0.14068175,3347.7,3345.5,0.13181332]
[1768489773969,0.14068175,3347.7,3345.7,0.13181332]
[1768489774266,0.0034359,3348.3,3346.6,1.82564368]
[1768489775272,0.0034359,3348.3,3346.6,1.957457]
[1768489775462,0.0034359,3348.3,3346.7,0.13181332]
[1768489776071,0.0034359,3348.3,3346.9,0.13181332]
[1768489776468,1.82564368,3350.2,3346.7,1.164]
[1768489776469,0.14068175,3349.5,3347.2,0.13181332]
[1768489776671,1.82564368,3350.2,3346.7,1.164]
[1768489776672,0.14068175,3350.1,3347.6,1.957457]
[1768489776868,0.14068175,3350.1,3348.1,1.82564368]
[1768489777168,0.14068175,3350.1,3348.5,0.00447908]
[1768489777664,0.00275696,3350.1,3348.5,0.00657863]
[1768489777974,0.00275696,3350.1,3348.7,0.13181332]
[1768489778373,0.00275696,3350.1,3348.5,0.00657863]
[1768489779278,0.00275696,3350.1,3348.5,0.13839195]
[1768489779577,0.14068175,3351.3,3349.3,1.82564368]
[1768489779773,0.14068175,3351.9,3349.9,1.82564368]
[1768489780167,0.14068175,3351.9,3350.6,0.00447908]
[1768489780477,0.00446331,3351.2,3350.6,0.00447908]
[1768489780868,6.00446331,3351.2,3349.4,1.15781332]
[1768489781072,0.00446331,3351.2,3349.5,0.13181332]
[1768489782078,0.00446331,3351.2,3350.0,0.00447908]
[1768489782575,0.00250659,3351.9,3350.0,0.00447908]
[1768489783476,0.00250659,3351.9,3350.0,0.1362924]
[1768489784377,0.00447908,3351.3,3350.0,0.1362924]
[1768489785173,0.00250659,3351.9,3350.3,0.13181332]
[1768489786278,0.00250659,3351.9,3350.4,0.13181332]
[1768489786467,2.07623589,3354.2,3350.7,1.957457]
[1768489786468,0.14068175,3353.2,3350.7,1.957457]
[1768489786669,0.14912,3353.9,3351.3,0.13181332]
[1768489786670,0.14068175,3353.8,3351.3,0.13181332]
[1768489786984,0.14068175,3353.8,3352.2,0.00447908]
[1768489787575,0.14401864,3353.8,3352.2,0.00675504]
[1768489788178,0.00333689,3353.8,3352.3,1.82564368]
[1768489788378,0.00333689,3353.8,3352.4,0.13181332]
[1768489788584,0.14068175,3355.2,3352.8,1.957457]
[1768489788881,1.82564368,3355.9,3353.3,1.957457]
[1768489788882,0.14068175,3355.9,3353.3,1.957457]
[1768489789075,0.14068175,3355.9,3353.4,0.13181332]
[1768489789379,0.14068175,3355.9,3353.0,1.82564368]
[1768489789380,0.14068175,3355.8,3353.2,2.987]
[1768489789587,0.14068175,3355.6,3354.3,0.00447227]
[1768489789783,1.82833662,3355.9,3352.7,1.957457]
[1768489789784,0.14068175,3355.3,3352.7,1.05581332]
[1768489790081,0.14068175,3355.2,3352.7,3.11881332]
[1768489790284,0.28974175,3355.2,3352.8,1.957457]
[1768489790485,0.14068175,3355.2,3352.9,0.13181332]
[1768489790782,0.14068175,3355.8,3353.0,0.13181332]
[1768489791083,2.11536543,3355.8,3353.7,0.00447227]
[1768489791282,0.13933918,3355.7,3353.7,0.00447227]
[1768489792091,0.00269294,3355.9,3353.8,1.95571463]
[1768489792683,6.82564368,3357.1,3353.8,1.95571463]
[1768489792684,5.0,3357.1,3354.9,0.13007095]
[1768489793281,5.0,3357.1,3355.7,0.00447227]
[1768489793484,5.0,3357.1,3355.8,1.82564368]
[1768489793675,5.00347357,3357.1,3355.8,1.82889762]
[1768489794081,5.00347357,3357.1,3355.8,0.00325394]
[1768489794887,0.13933918,3357.0,3354.3,0.13007095]
[1768489795080,12.82911725,3357.1,3354.3,0.13007095]
[1768489795081,0.13933918,3356.8,3354.4,2.985]
[1768489795984,0.13933918,3356.8,3354.4,2.98884471]
[1768489796188,0.13933918,3356.8,3355.3,0.00447227]
[1768489796387,0.14899,3356.9,3355.3,0.00447227]
[1768489796687,0.00447227,3356.4,3355.3,0.00447227]
[1768489802212,4.90347357,3357.1,3355.3,0.13454322]
[1768489802810,0.13933918,3356.9,3355.3,0.00447227]
[1768489803010,0.14898,3357.0,3355.3,0.00447227]
[1768489803206,4.90347357,3357.1,3355.3,0.00447227]
[1768489803408,4.90347357,3357.1,3355.3,0.13454322]
[1768489804309,4.90347357,3357.1,3355.5,0.13007095]
[1768489804511,0.28822918,3359.0,3356.5,0.13007095]
[1768489804815,0.13933918,3359.6,3357.1,0.13007095]
[1768489805019,0.13933918,3359.6,3357.4,0.00447227]
[1768489805314,4.32184,3360.2,3357.6,0.13007095]
[1768489805508,0.0027654,3360.2,3358.1,0.14893]
[1768489805712,0.13933918,3360.1,3357.6,0.0023649]
[1768489806018,0.13933918,3359.8,3357.6,0.0023649]
[1768489806416,0.13933918,3359.8,3357.6,0.13243585]
[1768489806621,0.0027654,3360.2,3357.6,0.13243585]
[1768489806819,0.0027654,3360.2,3358.2,0.14893]
[1768489807026,0.0027654,3360.2,3358.3,0.13007095]
[1768489807412,0.14210458,3360.2,3357.7,0.13007095]
[1768489807813,0.14210458,3360.2,3357.8,2.982]
[1768489808317,0.14210458,3360.2,3357.9,2.982]
[1768489808625,0.14210458,3360.2,3357.6,0.0023649]
[1768489808626,0.13933918,3359.7,3357.6,0.0023649]
[1768489808815,0.14887,3359.5,3357.6,0.0023649]
[1768489809010,0.13933918,3359.4,3357.6,0.0023649]
[1768489809326,0.28824918,3358.6,3356.7,2.981]
[1768489809512,0.13933918,3358.6,3355.7,0.13007095]
[1768489809816,0.13933918,3357.9,3355.1,0.13007095]
[1768489810211,0.13933918,3357.9,3355.3,0.13007095]
[1768489810409,0.13933918,3357.9,3356.2,0.00446555]
[1768489810711,0.14897,3357.4,3356.2,0.00446555]
[1768489810914,0.28830918,3357.2,3355.1,0.00342226]
[1768489811518,0.149,3356.6,3355.1,0.00342226]
[1768489811911,0.13933918,3356.7,3355.1,0.00342226]
[1768489812109,0.13933918,3356.7,3354.0,0.13007095]
[1768489812110,0.13933918,3356.4,3354.0,0.13007095]
[1768489812307,0.13933918,3357.1,3354.5,0.13007095]
[1768489812524,0.13933918,3357.1,3354.6,0.13007095]
[1768489812822,0.00213131,3357.4,3355.1,0.13007095]
[1768489813019,0.14147049,3357.4,3354.4,0.1491]
[1768489813220,0.13933918,3357.1,3354.4,0.28217437]
[1768489813418,0.13933918,3356.8,3354.4,0.13307437]
[1768489813724,0.13933918,3356.7,3354.4,0.13307437]
[1768489813927,0.13933918,3356.5,3354.4,0.00300342]
[1768489814221,0.28835918,3356.1,3354.4,0.00300342]
[1768489814627,0.00446555,3355.6,3354.9,0.00446555]
[1768489816326,0.00446555,3355.6,3354.4,0.00300342]
[1768489819126,0.13933918,3355.5,3353.1,0.13007095]
[1768489819333,0.13933918,3355.1,3352.5,0.13007095]
[1768489819631,0.28840918,3355.0,3352.5,0.13007095]
[1768489820126,0.29073778,3355.0,3352.5,0.13007095]
[1768489820327,0.29073778,3355.0,3352.5,0.13378015]
[1768489820624,0.0023286,3355.0,3352.8,0.14917]
[1768489820821,0.0044724,3354.1,3352.9,0.13211797]
[1768489822625,0.0044724,3354.1,3352.5,2.9857092]
[1768489823027,0.0044724,3354.1,3352.5,0.0037092]
[1768489823223,0.0044724,3354.1,3352.5,0.13582717]
[1768489823418,0.0044724,3354.1,3352.6,0.13211797]
[1768489824327,0.0044724,3354.1,3352.5,6.1528892]
[1768489824328,0.0023286,3355.0,3353.3,0.28959351]
[1768489824836,0.0023286,3355.0,3353.4,0.14045351]
[1768489825033,0.0023286,3355.0,3353.6,0.14045351]
[1768489825736,0.0023286,3355.0,3354.0,0.0044724]
[1768489825940,0.0023286,3355.0,3354.0,0.14492591]
[1768489826126,0.29005112,3356.1,3354.0,0.14492591]
[1768489826625,0.0044724,3355.4,3354.0,0.14492591]
[1768489826926,0.0044724,3355.4,3354.0,0.0044724]
[1768489827119,0.14844375,3355.4,3354.0,0.0044724]
[1768489827320,0.14907,3355.1,3353.2,2.982]
[1768489827932,0.14103112,3355.1,3353.2,2.982]
[1768489828136,0.29011112,3354.9,3353.2,2.982]
[1768489828622,0.29011112,3354.8,3353.2,2.982]
[1768489828937,0.29011112,3354.8,3352.5,0.0037092]
[1768489829326,0.14844375,3355.4,3352.9,0.28961351]
[1768489829526,0.14907,3355.1,3352.9,0.28961351]
[1768489830233,0.14907,3355.0,3352.9,0.28961351]
[1768489830629,0.29011112,3354.8,3352.5,0.0037092]
[1768489830932,0.15646263,3355.4,3352.9,0.14045351]
[1768489831331,0.15646263,3355.4,3353.0,0.14045351]
[1768489831528,0.14906,3355.3,3353.0,0.14045351]
[1768489832230,0.14906,3355.3,3352.5,0.0037092]
[1768489832231,0.14103112,3355.3,3352.5,0.0037092]
[1768489832439,0.14908,3354.8,3352.6,0.14918]
[1768489832632,0.14844375,3355.4,3352.9,0.14045351]
[1768489833127,0.14908,3354.8,3352.5,0.0037092]
[1768489833325,0.14909,3354.7,3352.5,0.0037092]
[1768489833638,0.29013112,3354.5,3352.5,0.0037092]
[1768489834732,0.14103112,3354.5,3352.5,0.0037092]
[1768489834935,0.14103112,3355.3,3352.6,0.14045351]
[1768489835129,0.14908,3354.8,3352.7,0.14045351]
[1768489835330,0.14103112,3355.3,3352.9,0.28961351]
[1768489835636,0.29009112,3355.3,3353.8,0.00299303]
[1768489836530,0.14906,3355.2,3353.8,0.00299303]
[1768489836729,0.29011112,3354.9,3352.9,0.14916]
[1768489837140,0.14908,3354.9,3353.0,0.28961351]
[1768489837527,0.00741263,3355.4,3353.0,0.14045351]
[1768489837834,5.32723213,3357.4,3353.0,0.14045351]
[1768489837835,0.14899,3356.8,3354.6,0.28954351]
[1768489838028,0.29003112,3356.7,3354.6,0.14045351]
[1768489838234,0.14103112,3356.6,3354.0,0.14045351]
[1768489838428,0.29003112,3356.6,3354.0,0.14045351]
[1768489838633,0.14400247,3356.6,3354.0,0.14045351]
[1768489838833,0.14901,3356.5,3354.1,0.14045351]
[1768489839034,0.0044724,3355.6,3354.3,0.28955351]
[1768489839228,0.0044724,3355.6,3354.4,0.14045351]
[1768489839432,0.00297135,3356.6,3354.4,0.14045351]
[1768489840044,0.14400247,3356.6,3354.4,0.14045351]
[1768489840539,0.0044724,3355.8,3354.4,0.14045351]
[1768489842242,0.0044724,3355.8,3354.8,0.0044724]
[1768489844034,6.14550352,3355.8,3353.3,0.14914]
[1768489844241,0.14550352,3355.8,3353.3,0.28959351]
[1768489844442,3.12750352,3355.8,3353.4,0.14045351]
[1768489844742,0.14103112,3355.6,3353.4,0.14045351]
[1768489845145,0.14103112,3355.6,3354.2,0.00447239]
[1768489845344,0.14904,3355.7,3354.2,0.00447239]
[1768489845548,0.0044724,3355.8,3354.2,0.00447239]
[1768489847837,0.14103112,3355.3,3353.4,3.74313918]
[1768489848042,1.14470857,3355.2,3352.9,0.14045351]
[1768489848244,0.14909,3354.6,3352.5,0.0037092]
[1768489848642,1.33003112,3355.0,3352.5,0.0037092]
[1768489848643,0.1491,3354.4,3352.5,0.0037092]
[1768489849035,0.0044724,3353.8,3352.5,0.0037092]
[1768489849330,0.00668261,3353.8,3352.5,0.0037092]
[1768489850244,0.00668261,3353.8,3351.5,0.14045351]
[1768489850245,0.14913,3353.7,3351.5,0.14045351]
[1768489851242,0.14913,3353.7,3351.5,0.1432849]
[1768489852244,0.14771373,3353.8,3352.0,0.14282083]
[1768489852245,0.00668261,3353.8,3352.0,0.14282083]
[1768489853035,0.14027688,3353.8,3351.5,0.00283139]
[1768489853241,0.13359427,3353.7,3351.5,0.00283139]
[1768489853746,0.15581261,3353.8,3351.6,0.14282083]
[1768489853946,0.28940688,3353.8,3351.6,0.14282083]
[1768489854243,0.13359427,3353.7,3351.6,0.14282083]
[1768489854446,0.15581261,3353.8,3351.6,0.14282083]
[1768489855744,0.28272427,3353.7,3351.6,0.14282083]
[1768489855945,0.13359427,3353.6,3351.6,0.14282083]
[1768489857153,0.28272427,3353.6,3351.6,0.14282083]
[1768489859347,0.14914,3353.5,3351.6,0.14282083]
[1768489859555,0.28273427,3353.5,3351.5,0.00283139]
[1768489859748,0.13359427,3353.4,3351.5,0.00283139]
[1768489859948,0.13359427,3353.1,3351.5,0.00283139]
[1768489860253,0.14916,3353.0,3351.5,0.00283139]
[1768489860843,0.28275427,3353.0,3351.5,0.00283139]
[1768489861446,0.14913,3353.6,3351.5,0.14565222]
[1768489862555,0.13359427,3353.4,3351.5,0.00283139]
[1768489863144,0.13359427,3352.7,3350.1,0.14282083]
[1768489863345,0.13359427,3352.7,3350.5,0.14282083]
[1768489863648,0.0044724,3351.9,3349.7,0.14282083]
[1768489864051,0.0044724,3351.9,3349.7,0.1458009]
[1768489864252,0.13806667,3351.9,3349.7,0.1458009]
[1768489864566,0.14924,3351.3,3349.7,0.00298007]
[1768489864853,0.14924,3351.3,3349.1,3.12682083]
[1768489864854,0.14925,3351.0,3349.1,0.14282083]
[1768489865844,0.14925,3351.0,3349.1,0.14578565]
[1768489866051,0.28284427,3350.9,3349.1,0.00296482]
[1768489866244,0.13359427,3350.6,3349.1,0.00296482]
[1768489866445,0.28286427,3350.6,3349.1,0.00296482]
[1768489866658,0.28286427,3350.6,3348.5,0.14282083]
[1768489866659,0.13359427,3350.4,3347.8,0.14282083]
[1768489866848,0.0044724,3350.2,3348.3,0.14282083]
[1768489867052,0.0044724,3350.2,3348.3,0.29219083]
[1768489867358,0.0044724,3350.2,3348.4,0.14282083]
[1768489867752,0.0044724,3350.2,3348.4,0.14611043]
[1768489868457,0.0044724,3350.2,3348.7,0.14282083]
[1768489868657,2.07623589,3352.9,3348.4,6.0032896]
[1768489868658,0.13359427,3352.2,3349.7,0.14282083]
[1768489868862,0.1492,3352.1,3349.7,0.14282083]
[1768489869655,0.13359427,3352.2,3349.7,0.14282083]
[1768489870050,0.13359427,3352.2,3350.2,0.0044724]
[1768489870246,0.14918,3352.5,3350.2,0.0044724]
[1768489870560,0.14918,3352.5,3350.2,0.14729323]
[1768489870758,0.13359427,3353.9,3350.3,0.14282083]
[1768489870955,0.0044724,3352.4,3350.6,0.14282083]
[1768489871258,0.0044724,3352.4,3350.8,0.14282083]
[1768489871461,0.0044724,3352.4,3351.2,0.0044724]
[1768489871655,0.14915,3353.2,3351.2,0.14729323]
[1768489871855,0.15248218,3353.2,3351.2,0.14981958]
[1768489872964,0.0044724,3352.5,3351.2,0.14981958]
[1768489873357,0.00333218,3353.2,3351.5,0.14282083]
[1768489874956,0.00333218,3353.2,3351.2,0.00699875]
[1768489875465,0.13692645,3353.2,3351.2,0.00699875]
[1768489876550,0.14916,3353.0,3351.2,0.00699875]
[1768489877156,0.0044724,3352.4,3351.2,0.00699875]
[1768489877661,0.0044724,3352.4,3351.2,0.14981958]
[1768489878165,0.0044724,3352.4,3351.2,0.29905958]
[1768489878358,0.00333218,3353.2,3351.3,0.14282083]
[1768489878558,0.00333218,3353.2,3351.4,0.14282083]
[1768489879966,0.00333218,3353.2,3351.7,0.14282083]
[1768489880166,0.28269427,3354.3,3351.8,0.14282083]
[1768489880761,0.13911643,3354.9,3352.1,0.14029329]
[1768489880967,0.13911643,3354.9,3352.2,0.14029329]
[1768489881270,0.14225337,3354.9,3353.2,0.0044724]
[1768489882165,0.29133337,3354.9,3353.2,0.0044724]
[1768489882370,0.14225337,3354.9,3353.2,0.0044724]
[1768489882566,0.14908,3354.7,3353.2,0.0044724]
[1768489882875,0.28820643,3354.6,3353.2,0.0044724]
[1768489883171,0.14909,3354.5,3353.2,0.0044724]
[1768489883570,0.28820643,3354.5,3353.2,0.0044724]
[1768489883874,6.00313694,3354.9,3352.0,3.12529329]
[1768489883875,0.28821643,3354.3,3352.0,3.12529329]
[1768489884370,0.14912,3354.0,3351.9,0.13964411]
[1768489884569,0.28555847,3354.6,3352.1,0.13964411]
[1768489884770,0.13646847,3354.3,3352.1,0.13964411]
[1768489884973,0.13646847,3354.3,3352.0,0.1492]
[1768489885271,0.13646847,3354.3,3352.0,0.28884411]
[1768489885672,0.14912,3353.9,3352.0,0.13964411]
[1768489886065,0.14912,3353.9,3352.6,0.0044724]
[1768489886264,0.14913,3353.6,3351.4,0.13964411]
[1768489886870,0.14913,3353.6,3351.5,0.13964411]
[1768489887378,0.14913,3353.6,3351.0,0.23471707]
[1768489887379,0.14913,3353.6,3351.6,0.13964411]
[1768489887567,0.28559847,3353.6,3351.1,0.13964411]
[1768489887762,0.14914,3353.5,3351.2,0.14217046]
[1768489887962,0.13646847,3354.2,3351.5,0.13964411]
[1768489888166,0.14911,3354.1,3351.9,0.13964411]
[1768489888369,0.28554847,3354.8,3351.9,0.13964411]
[1768489888571,0.28554847,3354.8,3352.3,0.13964411]
[1768489888773,0.13646847,3354.8,3352.3,0.13964411]
[1768489888975,0.1491,3354.5,3352.3,0.13964411]
[1768489889372,0.0044724,3353.7,3352.3,0.13964411]
[1768489891576,0.0044724,3353.7,3352.3,0.28883411]
[1768489891875,10.393,3354.8,3352.8,0.13964411]
[1768489892077,0.00313694,3354.9,3352.8,0.13964411]
[1768489892471,0.00313694,3354.9,3352.8,0.28881411]
[1768489892667,0.00313694,3354.9,3353.0,0.13964411]
[1768489892863,0.00313694,3354.9,3353.1,0.13964411]
[1768489893274,10.393,3355.9,3353.5,0.13964411]
[1768489893483,0.28549847,3356.0,3353.6,0.13964411]
[1768489893773,0.14904,3355.7,3353.6,0.13964411]
[1768489893974,0.14904,3355.7,3354.5,0.0044724]
[1768489894179,0.0044724,3355.0,3352.9,0.13964411]
[1768489894381,0.00754558,3355.0,3352.9,0.14235361]
[1768489895271,0.00754558,3355.0,3352.9,0.29151361]
[1768489895467,0.00754558,3355.0,3353.0,0.13964411]